{"text_format":"1","workbook":"xlsx","n_sheets":1,"sheets":["Лист1"],"not_rendered":{"charts":0,"images":0,"macros":1,"external_links":0,"defined_names":70,"comments":0,"pivot_tables":0},"unopened":[],"bounds":{"document_bytes":16777216,"sheet_cells":100000,"rows_first":2000,"rows_last":500,"rows_between":2000,"halvings":0,"cell_chars":16384,"cell_head_chars":4096},"cells_cut":0,"cells_raw":0,"read":"whole","date_system":"1900"}

{"sheet":"Лист1","index":0,"n_rows":84,"n_cols":15,"rows_kept":84,"cut":false,"hidden":false,"merged":[]}
[]
[]
[]
[null,null,null,null,null,"KK","KK","KK","SV&CO","SV&CO","SV&CO","SV&CO","SV&CO","SV&CO"]
[null,null,null,null,null,"stage 1","stage 2","stage 3","stage 4","stage 5","stage 6","stage 7","stage 8","stage 9"]
[null,null,null,null,null,23,23,23,95,95,95,96,25,25]
[]
[]
[null,null,null,"KK",8,null,null,null,null,null,null,null,null,null,{"$f":"SUM(F9:N9)","v":0}]
[null,null,null,"SV&CO",5,null,null,null,null,null,null,null,null,null,0]
[null,null,null,"SV&CO",5,null,null,null,null,null,null,null,null,null,0]
[null,null,null,"KK",8,null,null,null,null,null,null,null,null,null,0]
[null,null,null,"SV&CO",8,null,null,null,null,null,null,null,null,null,0]
[null,null,null,"KK",8,null,null,null,null,null,null,null,null,null,0]
[null,null,null,"SV&CO",8,null,null,null,null,null,null,null,null,null,0]
[null,null,null,"KK",8,null,null,null,null,null,null,null,null,null,0]
[null,null,null,"SV&CO",5,null,null,null,null,null,null,null,null,null,0]
[null,null,null,"SV&CO",5,null,null,null,null,null,null,null,null,null,0]
[null,null,null,"KK",8,null,null,null,null,null,null,null,null,null,0]
[null,null,null,"KK",8,null,null,null,null,null,null,null,null,null,0]
[null,null,null,"SV&CO",5,null,null,null,null,null,null,null,null,null,0]
[null,null,null,"SV&CO",5,null,null,null,null,null,null,null,null,null,0]
[null,null,null,"SV&CO",8,null,null,null,null,null,null,null,null,null,0]
[null,null,null,"SV&CO",5,null,null,null,null,null,null,null,null,null,0]
[null,null,null,"SV&CO",8,null,null,null,null,null,null,null,null,null,0]
[null,null,null,"SV&CO",5,null,null,null,null,null,null,null,null,null,0]
[null,null,null,"SV&CO",5,null,null,null,null,null,null,null,null,null,0]
[null,null,null,"SV&CO",5,null,null,null,null,null,null,null,null,null,0]
[null,null,null,"KK",8,null,null,null,null,null,null,null,null,null,0]
[null,null,null,"SV&CO",8,null,null,null,null,null,null,null,null,null,0]
[null,null,null,"SV&CO",8,null,null,null,null,null,null,null,null,null,0]
[null,null,null,"SV&CO",5,null,null,null,null,null,null,null,null,null,0]
[null,null,null,"SV&CO",5,null,null,null,null,null,null,null,null,null,0]
[null,null,null,"SV&CO",5,null,null,null,null,null,null,null,null,null,0]
[null,null,null,"KK",8,null,null,null,null,null,null,null,null,null,0]
[null,null,null,"KK",8,null,null,null,null,null,null,null,null,null,0]
[null,null,null,"SV&CO",8,null,null,null,null,null,null,null,null,null,0]
[null,null,null,"SV&CO",5,null,null,null,null,null,null,null,null,null,0]
[null,null,null,"KK",10,null,null,null,null,null,null,null,null,null,0]
[null,null,null,"KK",10,null,null,null,null,null,null,null,null,null,0]
[null,null,null,"KK",10,null,null,null,null,null,null,null,null,null,0]
[null,null,null,"KK",10,null,null,null,null,null,null,null,null,null,0]
[null,null,null,"SV&CO",5,null,null,null,null,null,null,null,null,null,0]
[null,null,null,"SV&CO",5,null,null,null,null,null,null,null,null,null,0]
[null,null,null,"SV&CO",5,null,null,null,null,null,null,null,null,null,0]
[null,null,null,"SV&CO",5,null,null,null,null,null,null,null,null,null,0]
[null,null,null,"SV&CO",5,null,null,null,null,null,null,null,null,null,0]
[null,null,null,"SV&CO",5,null,null,null,null,null,null,null,null,null,0]
[null,null,null,"SV&CO",5,null,null,null,null,null,null,null,null,null,0]
[null,null,null,"SV&CO",5,null,null,null,null,null,null,null,null,null,0]
[null,null,null,"SV&CO",5,null,null,null,null,null,null,null,null,null,0]
[null,null,null,"SV&CO",5,null,null,null,null,null,null,null,null,null,0]
[null,null,null,"SV&CO",5,null,null,null,null,null,null,null,null,null,0]
[null,null,null,"SV&CO",5,null,null,null,null,null,null,null,null,null,0]
[null,null,null,"SV&CO",5,null,null,null,null,null,null,null,null,null,0]
[null,null,null,"SV&CO",8,null,null,null,null,null,null,null,null,null,0]
[null,null,null,"KK",8,null,null,null,null,null,null,null,null,null,0]
[null,null,null,"SV&CO",5,null,null,null,null,null,null,null,null,null,0]
[null,null,null,"SV&CO",5,null,null,null,null,null,null,null,null,null,0]
[null,null,null,"SV&CO",5,null,null,null,null,null,null,null,null,null,0]
[null,null,null,"SV&CO",5,null,null,null,null,null,null,null,null,null,0]
[null,null,null,"SV&CO",5,null,null,null,null,null,null,null,null,null,0]
[null,null,null,"KK",8,null,null,null,null,null,null,null,null,null,0]
[null,null,null,"SV&CO",5,null,null,null,null,null,null,null,null,null,0]
[null,null,null,"SV&CO",5,null,null,null,null,null,null,null,null,null,0]
[null,null,null,"KK",8,null,null,null,null,null,null,null,null,null,0]
[null,null,null,"KK",8,null,null,null,null,null,null,null,null,null,0]
[null,null,null,"SV&CO",8,null,null,null,null,null,null,null,null,null,0]
[null,null,null,"SV&CO",5,null,null,null,null,null,null,null,null,null,0]
[null,null,null,"KK",10,null,null,null,null,null,null,null,null,null,0]
[null,null,null,"KK",8,null,null,null,null,null,null,null,null,null,0]
[null,null,null,"KK",10,null,null,null,null,null,null,null,null,null,0]
[null,null,null,"KK",10,null,null,null,null,null,null,null,null,null,{"$f":"SUM(F73:N73)","v":0}]
[null,null,null,"KK",10,null,null,null,null,null,null,null,null,null,0]
[null,null,null,"KK",10,null,null,null,null,null,null,null,null,null,0]
[null,null,null,"KK",10,null,null,null,null,null,null,null,null,null,0]
[null,null,null,"KK",10,null,null,null,null,null,null,null,null,null,0]
[null,null,null,"SV&CO",5,null,null,null,null,null,null,null,null,null,0]
[null,null,null,"SV&CO",8,null,null,null,null,null,null,null,null,null,0]
[null,null,null,"KK",8,null,null,null,null,null,null,null,null,null,0]
[null,null,null,"SV&CO",5,null,null,null,null,null,null,null,null,null,0]
[null,null,null,"SV&CO",5,null,null,null,null,null,null,null,null,null,0]
[]
[null,null,null,null,null,{"$f":"SUM(F9:F82)","v":0},{"$f":"SUM(G9:G82)","v":0},0,0,0,0,0,0,0]